[Event "3rd FIDE WCCC Rapid U10 2019"]
[Site "Minsk"]
[Date "2019.08.17"]
[Round "8.6"]
[White "Zimin, Artur"]
[Black "Rusanov, Ilya"]
[Result "0-1"]
[ECO "B07"]
[WhiteElo "1672"]
[BlackElo "1267"]
[Annotator "NA"]
[PlyCount "121"]
[EventDate "2019.08.16"]
[EventType "swiss"]
[EventCountry "BLR"]
[SourceTitle "playchess.com"]
[Source "ChessBase"]
[SourceQuality "1"]
[TimeControl "600+5"]

1. d4 {[%emt 0:00:00]} Nf6 {[%emt 0:00:03]} 2. Nc3 {[%emt 0:00:00]} g6 {[%emt 0:00:01]} 3. e4 {[%emt 0:00:00]} d6 {[%emt 0:00:01]} 4. f3 {[%emt 0:00:00]} Bg7 {[%emt 0:00:00]} 5. Be3 {[%emt 0:00:02]} Nbd7 {[%emt 0:00:05]} 6. Qd2 {[%emt 0:00:02]} a5 {[%emt 0:00:05]} 7. O-O-O {[%emt 0:00:05]} c6 {[%emt 0:00:01]} 8. Bh6 {[%emt 0:00:03]} O-O {[%emt 0:00:05]} 9. g4 {[%emt 0:00:03]} b5 {[%emt 0:00:05]} 10. h4 {[%emt 0:00:02]} b4 {[%emt 0:00:04]} 11. Nce2 {[%emt 0:00:03]} b3 {[%emt 0:00:03]} 12. cxb3 {[%emt 0:00:16]} c5 {[%emt 0:00:02]} 13. h5 {[%emt 0:00:03]} a4 {[%emt 0:00:19]} 14. bxa4 {[%emt 0:00:03]} Rxa4 {[%emt 0:00:02]} 15. b3 {[%emt 0:00:13]} Ra3 {[%emt 0:00:11]} 16. Bxg7 {[%emt 0:00:12]} Kxg7 {[%emt 0:00:06]} 17. Ng3 {[%emt 0:00:03]} Qc7 {[%emt 0:00:30]} 18. hxg6 {[%emt 0:00:09]} fxg6 {[%emt 0:00:03]} 19. Kb1 {[%emt 0:00:24]} Ba6 {[%emt 0:00:28]} 20. Qb2 {[%emt 0:02:01]} Qa5 {[%emt 0:00:30]} 21. Bxa6 {[%emt 0:00:16]} Qxa6 {[%emt 0:00:02]} 22. dxc5 {[%emt 0:00:05]} Nxc5 {[%emt 0:00:09]} 23. g5 {[%emt 0:00:08]} Rb8 {[%emt 0:00:31]} 24. gxf6+ {[%emt 0:00:22]} exf6 {[%emt 0:00:01]} 25. Rh2 {[%emt 0:04:34]} Nxb3 {[%emt 0:00:19]} 26. axb3 {[%emt 0:02:36]} Rbxb3 {[%emt 0:00:10]} 27. Qxb3 {[%emt 0:00:11]} Rxb3+ {[%emt 0:00:01]} 28. Rb2 {[%emt 0:00:02]} Ra3 {[%emt 0:00:11]} 29. Rf1 {[%emt 0:00:21]} Ra1+ {[%emt 0:00:04]} 30. Kc2 {[%emt 0:00:01]} Qc4+ {[%emt 0:00:03]} 31. Kd2 {[%emt 0:00:05]} Qd4+ {[%emt 0:00:01]} 32. Kc2 {[%emt 0:00:03]} Qc4+ {[%emt 0:00:03]} 33. Kd2 {[%emt 0:00:01]} Rxf1 {[%emt 0:00:05]} 34. Rb7+ {[%emt 0:00:03]} Kh6 {[%emt 0:00:02]} 35. Nxf1 {[%emt 0:00:02]} Qxf1 {[%emt 0:00:02]} 36. Ne2 {[%emt 0:00:03]} Qxf3 {[%emt 0:00:02]} 37. Re7 {[%emt 0:00:03]} d5 {[%emt 0:00:06]} 38. e5 {[%emt 0:00:08]} fxe5 {[%emt 0:00:04]} 39. Rxe5 {[%emt 0:00:02]} Qb3 {[%emt 0:00:09]} 40. Re3 {[%emt 0:00:05]} Qb2+ {[%emt 0:00:05]} 41. Ke1 {[%emt 0:00:03]} Qb1+ {[%emt 0:00:06]} 42. Kf2 {[%emt 0:00:03]} Kg7 {[%emt 0:00:10]} 43. Re7+ {[%emt 0:00:06]} Kh6 {[%emt 0:00:02]} 44. Re3 {[%emt 0:00:01]} Qb6 {[%emt 0:00:10]} 45. Kf3 {[%emt 0:00:25]} Qf6+ {[%emt 0:00:15]} 46. Kg2 {[%emt 0:00:06]} Qg5+ {[%emt 0:00:04]} 47. Kf2 {[%emt 0:00:01]} Qh4+ {[%emt 0:00:16]} 48. Rg3 {[%emt 0:00:08]} d4 {[%emt 0:00:17]} 49. Ng1 {[%emt 0:00:10]} Qh2+ {[%emt 0:00:06]} 50. Rg2 {[%emt 0:00:05]} Qf4+ {[%emt 0:00:01]} 51. Nf3 {[%emt 0:00:01]} d3 {[%emt 0:00:06]} 52. Rh2+ {[%emt 0:00:05]} Kg7 {[%emt 0:00:02]} 53. Rh4 {[%emt 0:00:09]} Qc1 {[%emt 0:00:31]} 54. Rd4 {[%emt 0:00:03]} Qb2+ {[%emt 0:00:02]} 55. Ke3 {[%emt 0:00:06]} Qe2+ {[%emt 0:00:01]} 56. Kf4 {[%emt 0:00:01]} h6 {[%emt 0:00:14]} 57. Rd7+ {[%emt 0:00:03]} Kf6 {[%emt 0:00:04]} 58. Rd6+ {[%emt 0:00:05]} Ke7 {[%emt 0:00:26]} 59. Rxg6 {[%emt 0:00:12]} d2 {[%emt 0:00:04]} 60. Rg7+ {[%emt 0:00:04]} Kf6 {[%emt 0:00:07]} 61. Rd7 {[%emt 0:00:06]} 0-1

[Event "3rd FIDE WCCC Rapid U10 2019"]
[Site "Minsk"]
[Date "2019.08.17"]
[Round "9.1"]
[White "Usov, Aleksandr E."]
[Black "Koshulyan, Egor A."]
[Result "0-1"]
[ECO "B22"]
[WhiteElo "1919"]
[BlackElo "1872"]
[Annotator "NA"]
[PlyCount "66"]
[EventDate "2019.08.16"]
[EventType "swiss"]
[EventCountry "BLR"]
[SourceTitle "playchess.com"]
[Source "ChessBase"]
[SourceQuality "1"]
[TimeControl "600+5"]

1. e4 {[%emt 0:00:00]} c5 {[%emt 0:00:00]} 2. c3 {[%emt 0:00:00]} Nf6 3. e5 Nd5 {[%emt 0:00:00]} 4. d4 {[%emt 0:00:00]} cxd4 {[%emt 0:00:00]} 5. Nf3 {[%emt 0:00:00]} Nc6 {[%emt 0:00:02]} 6. Bc4 {[%emt 0:00:00]} Nb6 {[%emt 0:00:01]} 7. Bb3 {[%emt 0:00:02]} d5 {[%emt 0:00:02]} 8. cxd4 {[%emt 0:00:24]} Bg4 {[%emt 0:00:08]} 9. Be3 {[%emt 0:00:07]} e6 {[%emt 0:00:01]} 10. Nc3 {[%emt 0:00:04]} Be7 {[%emt 0:00:04]} 11. h3 {[%emt 0:00:26]} Bh5 {[%emt 0:00:03]} 12. O-O {[%emt 0:00:25]} O-O {[%emt 0:00:03]} 13. g4 {[%emt 0:00:23]} Bg6 {[%emt 0:00:02]} 14. Nh2 {[%emt 0:00:09]} f6 {[%emt 0:00:39]} 15. f4 {[%emt 0:00:10]} fxe5 {[%emt 0:00:01]} 16. fxe5 {[%emt 0:00:14]} Rxf1+ {[%emt 0:00:35]} 17. Qxf1 {[%emt 0:00:07]} Bg5 {[%emt 0:00:02]} 18. Qc1 {[%emt 0:01:00]} Bxe3+ {[%emt 0:00:07]} 19. Qxe3 {[%emt 0:00:01]} Qe7 {[%emt 0:00:01]} 20. Nb5 {[%emt 0:01:13]} a6 {[%emt 0:00:09]} 21. Nd6 {[%emt 0:00:04]} Nc8 {[%emt 0:00:03]} 22. Nxc8 {[%emt 0:01:49]} Rxc8 {[%emt 0:00:01]} 23. Rf1 {[%emt 0:00:28]} Rf8 {[%emt 0:00:10]} 24. Rxf8+ {[%emt 0:00:53]} Qxf8 {[%emt 0:00:03]} 25. Nf3 {[%emt 0:00:25]} Qe7 {[%emt 0:00:21]} 26. a3 {[%emt 0:00:38]} Be4 {[%emt 0:01:17]} 27. Nd2 {[%emt 0:00:05]} Bg6 {[%emt 0:00:02]} 28. Nf3 {[%emt 0:00:03]} Be4 {[%emt 0:00:01]} 29. Nd2 {[%emt 0:00:01]} Bg6 {[%emt 0:00:01]} 30. Kh2 {[%emt 0:00:27]} Qd8 {[%emt 0:00:06]} 31. Nf3 {[%emt 0:00:45]} Qb6 {[%emt 0:00:04]} 32. Kg3 {[%emt 0:01:38]} Be4 {[%emt 0:00:14]} 33. Ng5 {[%emt 0:00:14]} Nxd4 {time} 0-1

[Event "3rd FIDE WCCC Rapid U10 2019"]
[Site "Minsk"]
[Date "2019.08.17"]
[Round "9.2"]
[White "Novozhilov, Semen"]
[Black "Samunenkov, Ihor"]
[Result "0-1"]
[ECO "A43"]
[WhiteElo "1686"]
[BlackElo "1964"]
[Annotator "NA"]
[PlyCount "60"]
[EventDate "2019.08.16"]
[EventType "swiss"]
[EventCountry "BLR"]
[SourceTitle "playchess.com"]
[Source "ChessBase"]
[SourceQuality "1"]
[TimeControl "600+5"]

1. d4 {[%emt 0:00:00]} Nf6 {[%emt 0:00:00]} 2. Nf3 {[%emt 0:00:00]} c5 {[%emt 0:00:00]} 3. d5 {[%emt 0:00:03]} b5 {[%emt 0:00:00]} 4. Bg5 {[%emt 0:00:03]} Qb6 {[%emt 0:00:05]} 5. c3 {[%emt 0:00:03]} d6 {[%emt 0:01:12]} 6. Bxf6 {[%emt 0:00:04]} exf6 {[%emt 0:00:03]} 7. e4 {[%emt 0:00:02]} g6 {[%emt 0:00:19]} 8. Nbd2 {[%emt 0:00:05]} Bg7 {[%emt 0:00:01]} 9. a4 {[%emt 0:00:04]} b4 {[%emt 0:03:03]} 10. Nc4 {[%emt 0:00:06]} Qd8 {[%emt 0:00:03]} 11. Bd3 {[%emt 0:01:32]} a5 {[%emt 0:00:13]} 12. O-O {[%emt 0:00:23]} O-O {[%emt 0:00:03]} 13. Nfd2 {[%emt 0:00:31]} Qc7 {[%emt 0:00:37]} 14. Ne3 {[%emt 0:00:08]} Nd7 {[%emt 0:00:23]} 15. f4 {[%emt 0:00:10]} bxc3 {[%emt 0:01:28]} 16. bxc3 {[%emt 0:00:03]} f5 {[%emt 0:00:01]} 17. exf5 {[%emt 0:00:25]} Bxc3 {[%emt 0:00:05]} 18. fxg6 {[%emt 0:00:21]} fxg6 {[%emt 0:00:29]} 19. Ne4 {[%emt 0:01:00]} Bd4 {[%emt 0:00:31]} 20. Rf3 {[%emt 0:00:19]} Nf6 {[%emt 0:00:16]} 21. Kh1 {[%emt 0:00:43]} Nxe4 {[%emt 0:00:13]} 22. Bxe4 {[%emt 0:00:02]} Bxa1 {[%emt 0:00:03]} 23. Qxa1 {[%emt 0:00:03]} Qg7 {[%emt 0:00:08]} 24. Qb1 {[%emt 0:00:53]} Ba6 {[%emt 0:00:52]} 25. h3 {[%emt 0:01:48]} Rab8 {[%emt 0:00:02]} 26. Qe1 {[%emt 0:00:05]} Rbe8 {[%emt 0:00:47]} 27. Qb1 {[%emt 0:00:07]} Qd4 {[%emt 0:00:23]} 28. Bxg6 {[%emt 0:01:16]} Rxe3 {[%emt 0:00:07]} 29. Bxh7+ {[%emt 0:00:47]} Kh8 {[%emt 0:00:03]} 30. Rf2 {[%emt 0:00:03]} Rxh3+ {[%emt 0:00:15]} 0-1

[Event "3rd FIDE WCCC Rapid U10 2019"]
[Site "Minsk"]
[Date "2019.08.17"]
[Round "9.3"]
[White "Zverev, Lev"]
[Black "Toktomushev, Teimur"]
[Result "1-0"]
[ECO "B33"]
[WhiteElo "1881"]
[BlackElo "1977"]
[Annotator "NA"]
[PlyCount "107"]
[EventDate "2019.08.16"]
[EventType "swiss"]
[EventCountry "BLR"]
[SourceTitle "playchess.com"]
[Source "ChessBase"]
[SourceQuality "1"]
[TimeControl "600+5"]

1. e4 {[%emt 0:00:00]} c5 {[%emt 0:00:00]} 2. Nf3 e6 3. d4 {[%emt 0:00:00]} cxd4 {[%emt 0:00:00]} 4. Nxd4 {[%emt 0:00:01]} Nf6 {[%emt 0:00:00]} 5. Nc3 {[%emt 0:00:01]} Nc6 {[%emt 0:00:00]} 6. Ndb5 {[%emt 0:00:01]} d6 {[%emt 0:00:00]} 7. Bf4 {[%emt 0:00:02]} e5 {[%emt 0:00:00]} 8. Bg5 {[%emt 0:00:00]} a6 {[%emt 0:00:01]} 9. Na3 b5 10. Bxf6 {[%emt 0:00:03]} gxf6 {[%emt 0:00:06]} 11. Nd5 {[%emt 0:00:02]} Bg7 {[%emt 0:00:03]} 12. g3 {[%emt 0:00:01]} f5 {[%emt 0:00:32]} 13. Bg2 {[%emt 0:00:02]} Rb8 {[%emt 0:00:27]} 14. O-O {[%emt 0:00:10]} O-O {[%emt 0:00:31]} 15. c3 {[%emt 0:01:19]} fxe4 {[%emt 0:00:35]} 16. Bxe4 {[%emt 0:00:03]} f5 {[%emt 0:00:01]} 17. Bg2 {[%emt 0:00:02]} Be6 {[%emt 0:00:10]} 18. Nc2 {[%emt 0:00:04]} Ne7 {[%emt 0:01:13]} 19. Ncb4 {[%emt 0:00:39]} Ra8 {[%emt 0:03:28]} 20. Nxe7+ {[%emt 0:00:26]} Qxe7 {[%emt 0:00:00]} 21. Bxa8 Rxa8 22. Qd2 {[%emt 0:00:09]} a5 {[%emt 0:02:11]} 23. Nd5 {[%emt 0:00:04]} Qf7 {[%emt 0:00:28]} 24. Rfd1 {[%emt 0:00:08]} Rd8 {[%emt 0:00:10]} 25. a4 {[%emt 0:00:52]} Rb8 {[%emt 0:01:16]} 26. axb5 {[%emt 0:00:08]} Rxb5 {[%emt 0:00:03]} 27. c4 {[%emt 0:00:12]} Rc5 {[%emt 0:00:16]} 28. Rxa5 {[%emt 0:00:02]} Rxc4 {[%emt 0:00:02]} 29. Ra8+ {[%emt 0:00:09]} Bf8 {[%emt 0:00:29]} 30. Ne3 {[%emt 0:01:38]} Rd4 {[%emt 0:00:15]} 31. Qe2 {[%emt 0:00:03]} Rxd1+ {[%emt 0:00:10]} 32. Qxd1 {[%emt 0:00:02]} f4 {[%emt 0:00:03]} 33. Ng2 {[%emt 0:00:18]} Bd5 {[%emt 0:00:08]} 34. Qg4+ {[%emt 0:00:26]} Kh8 {[%emt 0:00:03]} 35. Rb8 {[%emt 0:00:03]} f3 {[%emt 0:00:04]} 36. Ne3 {[%emt 0:00:14]} Bc6 {[%emt 0:00:02]} 37. Qf5 {[%emt 0:00:10]} Kg8 {[%emt 0:00:08]} 38. Qg4+ {[%emt 0:00:06]} Kh8 {[%emt 0:00:01]} 39. Qc8 {[%emt 0:00:04]} Kg7 {[%emt 0:00:13]} 40. Qxc6 {[%emt 0:00:02]} Kg8 {[%emt 0:00:04]} 41. Qd5 {[%emt 0:00:06]} Qxd5 {[%emt 0:00:04]} 42. Nxd5 {[%emt 0:00:02]} e4 {[%emt 0:00:04]} 43. b4 {[%emt 0:00:03]} e3 {[%emt 0:00:03]} 44. fxe3 {[%emt 0:00:03]} f2+ {[%emt 0:00:01]} 45. Kxf2 {[%emt 0:00:01]} h5 {[%emt 0:00:01]} 46. b5 {[%emt 0:00:02]} h4 {[%emt 0:00:00]} 47. gxh4 {[%emt 0:00:03]} Kh7 {[%emt 0:00:02]} 48. Rxf8 {[%emt 0:00:02]} Kg6 {[%emt 0:00:01]} 49. b6 {[%emt 0:00:01]} Kh5 {[%emt 0:00:01]} 50. b7 {[%emt 0:00:02]} Kg4 {[%emt 0:00:05]} 51. b8=Q {[%emt 0:00:02]} Kh3 {[%emt 0:00:01]} 52. Qxd6 {[%emt 0:00:02]} Kg4 {[%emt 0:00:07]} 53. Qf4+ {[%emt 0:00:02]} Kh5 {[%emt 0:00:02]} 54. Qg5# {[%emt 0:00:02]} 1-0

[Event "3rd FIDE WCCC Rapid U10 2019"]
[Site "Minsk"]
[Date "2019.08.17"]
[Round "9.4"]
[White "Rusanov, Ilya"]
[Black "Vetokhin, Savva"]
[Result "0-1"]
[ECO "B30"]
[WhiteElo "1267"]
[BlackElo "2016"]
[Annotator "NA"]
[PlyCount "118"]
[EventDate "2019.08.16"]
[EventType "swiss"]
[EventCountry "BLR"]
[SourceTitle "playchess.com"]
[Source "ChessBase"]
[SourceQuality "1"]
[TimeControl "600+5"]

1. e4 {[%emt 0:00:01]} c5 {[%emt 0:00:00]} 2. Nf3 {[%emt 0:00:01]} Nc6 {[%emt 0:00:00]} 3. c3 {[%emt 0:00:05]} d5 {[%emt 0:00:03]} 4. exd5 Qxd5 {[%emt 0:00:02]} 5. Be2 {[%emt 0:00:10]} Nf6 {[%emt 0:00:05]} 6. O-O {[%emt 0:00:03]} e5 {[%emt 0:00:02]} 7. Na3 {[%emt 0:00:07]} Be7 8. Bc4 {[%emt 0:00:05]} Qd8 {[%emt 0:00:24]} 9. Bb5 {[%emt 0:00:07]} Qc7 {[%emt 0:01:00]} 10. Nc4 {[%emt 0:00:24]} Nd7 {[%emt 0:00:45]} 11. Re1 {[%emt 0:00:13]} O-O {[%emt 0:00:29]} 12. Bxc6 {[%emt 0:00:09]} Qxc6 {[%emt 0:00:01]} 13. Ncxe5 {[%emt 0:00:15]} Nxe5 {[%emt 0:00:02]} 14. Nxe5 {[%emt 0:00:01]} Qc7 {[%emt 0:00:06]} 15. d3 {[%emt 0:00:38]} b6 {[%emt 0:00:03]} 16. Bf4 {[%emt 0:00:28]} Bd6 {[%emt 0:00:03]} 17. Bg3 {[%emt 0:00:12]} Bf5 {[%emt 0:00:41]} 18. Qf3 {[%emt 0:00:13]} g6 {[%emt 0:00:35]} 19. Ng4 {[%emt 0:01:29]} Kg7 {[%emt 0:00:53]} 20. Ne3 {[%emt 0:03:03]} Be6 {[%emt 0:00:31]} 21. Nd5 {[%emt 0:00:38]} Bxd5 {[%emt 0:01:19]} 22. Qxd5 {[%emt 0:00:03]} Bxg3 {[%emt 0:00:01]} 23. fxg3 Rad8 24. Qe4 {[%emt 0:00:32]} Qd7 {[%emt 0:00:13]} 25. Rad1 {[%emt 0:00:11]} Rfe8 {[%emt 0:00:02]} 26. Qf3 {[%emt 0:01:55]} Rxe1+ {[%emt 0:00:02]} 27. Rxe1 {[%emt 0:00:01]} Qxd3 {[%emt 0:00:01]} 28. Qxd3 {[%emt 0:00:18]} Rxd3 {[%emt 0:00:01]} 29. Re2 {[%emt 0:00:09]} Kf6 {[%emt 0:00:31]} 30. Kf2 {[%emt 0:00:02]} c4 {[%emt 0:00:28]} 31. Ke1 {[%emt 0:00:07]} b5 {[%emt 0:00:04]} 32. Re8 {[%emt 0:00:07]} Rd6 {[%emt 0:00:12]} 33. Ra8 {[%emt 0:00:12]} a6 {[%emt 0:00:01]} 34. Ke2 {[%emt 0:00:11]} Kf5 {[%emt 0:00:09]} 35. Rf8 {[%emt 0:00:17]} f6 {[%emt 0:00:05]} 36. Re8 {[%emt 0:00:18]} h5 {[%emt 0:00:03]} 37. Ke3 {[%emt 0:00:06]} Rd1 {[%emt 0:00:04]} 38. Ra8 {[%emt 0:00:02]} Rb1 {[%emt 0:00:21]} 39. Rxa6 {[%emt 0:00:04]} Rxb2 {[%emt 0:00:01]} 40. Kf3 {[%emt 0:00:06]} g5 {[%emt 0:00:03]} 41. h3 g4+ 42. hxg4+ {[%emt 0:00:09]} hxg4+ 43. Ke3 Rxg2 {[%emt 0:00:05]} 44. a4 {[%emt 0:00:16]} Rxg3+ {[%emt 0:00:03]} 45. Kf2 {[%emt 0:00:02]} Rf3+ {[%emt 0:00:01]} 46. Kg2 {[%emt 0:00:03]} bxa4 {[%emt 0:00:02]} 47. Rxa4 {[%emt 0:00:01]} Rxc3 {[%emt 0:00:01]} 48. Ra5+ {[%emt 0:00:00]} Kf4 {[%emt 0:00:02]} 49. Ra2 {[%emt 0:00:02]} f5 {[%emt 0:00:01]} 50. Rf2+ {[%emt 0:00:01]} Rf3 {[%emt 0:00:08]} 51. Rc2 {[%emt 0:00:01]} c3 {[%emt 0:00:00]} 52. Kg1 {[%emt 0:00:03]} g3 {[%emt 0:00:02]} 53. Rc1 {[%emt 0:00:04]} Ke4 {[%emt 0:00:07]} 54. Re1+ {[%emt 0:00:01]} Kd3 {[%emt 0:00:01]} 55. Rd1+ Ke2 {[%emt 0:00:02]} 56. Rc1 {[%emt 0:00:05]} Kd2 {[%emt 0:00:01]} 57. Ra1 {[%emt 0:00:02]} c2 {[%emt 0:00:01]} 58. Kg2 {[%emt 0:00:01]} Rc3 {[%emt 0:00:05]} 59. Ra2 {[%emt 0:00:02]} Kd1 {[%emt 0:00:02]} 0-1

[Event "3rd FIDE WCCC Rapid U10 2019"]
[Site "Minsk"]
[Date "2019.08.17"]
[Round "9.5"]
[White "Boykov, Pavel"]
[Black "Krasnoperov, Platon"]
[Result "1-0"]
[ECO "C02"]
[WhiteElo "1643"]
[BlackElo "1471"]
[Annotator "NA"]
[PlyCount "93"]
[EventDate "2019.08.16"]
[EventType "swiss"]
[EventCountry "BLR"]
[SourceTitle "playchess.com"]
[Source "ChessBase"]
[SourceQuality "1"]
[TimeControl "600+5"]

1. e4 {[%emt 0:00:00]} e6 {[%emt 0:00:00]} 2. d4 d5 3. e5 {[%emt 0:00:00]} c5 {[%emt 0:00:00]} 4. c3 {[%emt 0:00:00]} Qb6 {[%emt 0:00:00]} 5. Nf3 {[%emt 0:00:16]} Nc6 {[%emt 0:00:00]} 6. a3 {[%emt 0:00:04]} Nh6 {[%emt 0:00:03]} 7. b4 {[%emt 0:00:06]} cxd4 {[%emt 0:00:01]} 8. cxd4 {[%emt 0:00:01]} Nf5 {[%emt 0:00:02]} 9. Be3 {[%emt 0:00:01]} h5 {[%emt 0:00:12]} 10. Bd3 {[%emt 0:00:07]} Bd7 {[%emt 0:00:05]} 11. Bxf5 {[%emt 0:00:11]} exf5 {[%emt 0:00:00]} 12. Nc3 Be6 13. O-O {[%emt 0:00:08]} Be7 {[%emt 0:00:02]} 14. Na4 {[%emt 0:00:01]} Qd8 {[%emt 0:00:06]} 15. Nc5 {[%emt 0:00:02]} O-O {[%emt 0:00:13]} 16. Nxb7 {[%emt 0:00:02]} Qb6 {[%emt 0:00:16]} 17. Nc5 {[%emt 0:00:02]} g6 {[%emt 0:00:29]} 18. Bg5 {[%emt 0:00:25]} Rfe8 {[%emt 0:00:36]} 19. Bxe7 {[%emt 0:00:03]} Rxe7 {[%emt 0:00:02]} 20. Qd2 {[%emt 0:00:10]} Qd8 {[%emt 0:00:19]} 21. Rac1 {[%emt 0:00:11]} Nb8 {[%emt 0:00:45]} 22. Ng5 {[%emt 0:00:35]} Nd7 {[%emt 0:00:27]} 23. Nb7 {[%emt 0:00:12]} Qf8 {[%emt 0:01:16]} 24. Nd6 {[%emt 0:00:02]} Nb6 {[%emt 0:00:40]} 25. Rc5 {[%emt 0:00:51]} Rd8 {[%emt 0:01:56]} 26. f4 {[%emt 0:00:17]} Bd7 {[%emt 0:02:13]} 27. Rfc1 {[%emt 0:00:30]} f6 {[%emt 0:01:34]} 28. Nf3 {[%emt 0:00:06]} Re6 {[%emt 0:00:10]} 29. Rc7 {[%emt 0:00:23]} Rxd6 {[%emt 0:00:08]} 30. exd6 {[%emt 0:00:00]} Qxd6 {[%emt 0:00:02]} 31. Nh4 {[%emt 0:00:38]} Kg7 {[%emt 0:00:13]} 32. Qf2 {[%emt 0:00:23]} Kh6 {[%emt 0:00:12]} 33. Qg3 {[%emt 0:00:27]} Be8 {[%emt 0:00:01]} 34. R1c6 {[%emt 0:00:28]} Qf8 {[%emt 0:00:09]} 35. Rxa7 {[%emt 0:00:20]} Nc8 {[%emt 0:00:06]} 36. Rb7 {[%emt 0:00:26]} Nd6 {[%emt 0:00:07]} 37. Rxd6 {[%emt 0:00:24]} Rxd6 {[%emt 0:00:01]} 38. Rc7 {[%emt 0:00:06]} Re6 {[%emt 0:00:14]} 39. b5 {[%emt 0:00:15]} Re7 {[%emt 0:00:04]} 40. b6 {[%emt 0:00:18]} Rxc7 {[%emt 0:00:02]} 41. bxc7 {[%emt 0:00:04]} Bf7 {[%emt 0:00:00]} 42. Qc3 {[%emt 0:00:06]} Qc8 {[%emt 0:00:03]} 43. Qc6 {[%emt 0:00:17]} Kg7 {[%emt 0:00:03]} 44. Qb6 {[%emt 0:00:03]} Be6 {[%emt 0:00:04]} 45. a4 {[%emt 0:00:04]} Kf7 {[%emt 0:00:06]} 46. a5 {[%emt 0:00:01]} g5 {[%emt 0:00:06]} 47. fxg5 {[%emt 0:00:03]} 1-0